Cogmind - Beta 16 @@@ ROGUE MODE // 2025.11.14 @ 16:45:54 Player: Skysub Result: Destroyed by D-53 Grenadier with Mini Grenade Launcher Performance ------------- Evolutions (0) 0 Regions Visited (2) 400 Robots Destroyed (45) 225 Value Destroyed (829) 829 Prototype IDs (0) 0 Alien Tech Used (0) 0 Bonus (0) 0 TOTAL SCORE: 1454 Bonus ------- None Cogmind --------- Core Integrity 0/250 Matter 299/300 Energy 100/100 System Corruption 0% Temperature Cool (0) Movement Core (250) Ox4 Location -10/Mines Parts ------- > --- POWER (1) -------- (None) > --- PROPULSION (2) --- (None) > --- UTILITY (2) ------ Medium Storage Unit > --- WEAPON (2) ------- Light Assault Rifle Hammer > --- INVENTORY (10) --- Light Treads Light Treads Wheel Compact Wheel Small Storage Unit High-capacity Matter Pod (200) Tractor Beam Light Assault Rifle Peak State ------------ > --- POWER ------------ Light Nuclear Core > --- PROPULSION ------- Light Treads Light Treads > --- UTILITY ---------- Small Storage Unit Medium Storage Unit > --- WEAPON ----------- Light Assault Rifle Light Assault Rifle > --- INVENTORY -------- Light Treads Light Treads Wheel Compact Wheel High-capacity Matter Pod Tractor Beam Hammer [Rating: 9] Favorites ----------- Power Ion Engine Engine Ion Engine Power Core Light Nuclear Core Propulsion Light Treads Treads Light Treads Utility Small Storage Unit Device Seismic Detector Storage Small Storage Unit Weapon Assault Rifle Ballistic Gun Assault Rifle Special Weapon Mining Laser Impact Weapon Hammer Build | -11 -10 -10 ------- Run | Yrd Mat Min Slots Evolved . | . . . Power . | . . . Propulsion . | . . . Utility . | . . . Weapon . | . . . Parts Attached 16 | 8 7 1 Power 3 | 1 2 . Engine 2 | 1 1 . Core 1 | . 1 . Reactor . | . . . Propulsion 4 | 2 2 . Treads 4 | 2 2 . Leg . | . . . Wheel . | . . . Hover . | . . . Flight . | . . . Utility 3 | 2 1 . Device 1 | 1 . . Storage 2 | 1 1 . Processor . | . . . Hackware . | . . . Protection . | . . . Artifact . | . . . Weapon 6 | 3 2 1 Energy Gun . | . . . Energy Cannon . | . . . Ballistic Gun 4 | 3 1 . Ballistic Cannon . | . . . Launcher . | . . . Special Weapon 1 | . 1 . Impact Weapon 1 | . . 1 Slashing Weapon . | . . . Piercing Weapon . | . . . Special Melee Weapon . | . . . Unidentified Prototypes . | . . . Parts Lost 8 | . 5 3 Power 3 | . 2 1 Propulsion 3 | . 1 2 Utility 1 | . 1 . Weapon 1 | . 1 . Highest Loss Streak 3 | . 3 3 To Critical Strikes . | . . . Average Backups 7 | 3 7 8 Power . | . . . Propulsion 2 | 1 2 4 Utility 2 | . 2 3 Weapon 1 | . 1 1 Tool/Special . | . . . Unused Backups 6 | . 1 5 Power 1 | . 1 . Propulsion 3 | . . 3 Utility 2 | . . 2 Weapon . | . . . Tool/Special . | . . . Average Slot Usage (%) 94 | . 95 83 Engine 10 | . 11 . Core 3 | . 2 14 Treads 27 | . 28 26 Device 8 | . 9 . Storage 14 | . 14 14 Ballistic Gun 27 | . 27 27 Peak Build Rating 9 | 7 9 8 Average Rating 7 | 5 7 7 On Entrance 5 | . 7 8 Avg Prop Armor Cover (%) . | . . . Naked Turns . | . . . Heaviest Build 17 | 15 17 17 Greatest Support 40 | 40 40 40 Greatest Overweight (x) 1 | 1 . . Average Overweight (x) . | . . . Largest Inventory Capacity 10 | 8 10 10 Average Capacity 8 | 6 8 10 Most Carried 8 | 6 8 8 Average Carried 7 | 3 7 8 Final Capacity 10 | 8 10 10 Final Carried 8 | 6 8 8 Class Distribution -------------------- 85% | Mutant 14% | Scavenger-Mutant Dominant Class ---------------- Mutant | -10/Materials Scavenger-Mutant | -10/Mines Resources | -11 -10 -10 ----------- Run | Yrd Mat Min Matter Collected 1296 | 340 956 . Remotely . | . . . Salvage Created 1424 | 93 1311 20 Parts 114 | 14 99 1 Haulers Intercepted 2 | . 2 . Recyclers Shooed 3 | . 3 . Parts Field Recycled . | . . . Retrieved Matter . | . . . Parts Self-Destructed . | . . . Prevented . | . . . Parts Restored . | . . . Kills | -11 -10 -10 ------- Run | Yrd Mat Min Combat Hostiles Destroyed 25 | . 24 1 Guns 25 | . 24 1 Classes Destroyed 8 | 2 6 . Worker 4 | . 4 . Builder 5 | . 5 . Tunneler 4 | 3 1 . Hauler 2 | . 2 . Recycler 3 | 1 2 . Watcher 2 | . 2 . Swarmer 7 | . 6 1 Grunt 18 | . 18 . Best Kill Streak 6 | 4 6 1 Combat Bots Only 4 | . 4 1 Max Kills in Single Turn 1 | 1 1 1 Gunslinging . | . . . Exploded . | . . . Melee . | . . . Uniques/NPCs Destroyed . | . . . Combat | -11 -10 -10 -------- Run | Yrd Mat Min Hostile Shots Fired 127 | . 108 19 Missed 28 | . 23 5 Hits 99 | . 85 14 Projectile 99 | . 85 14 AOE 7 | . . 7 Damage Taken 1228 | . 946 282 Core 265 | . 173 92 Absorbed by Shields . | . . . Core Remaining (%) 100 | 100 . . Volleys Fired 152 | 10 139 3 Largest 2 | 2 2 2 Hottest 100 | 40 100 40 Shots Fired 287 | 20 261 6 Gun 270 | 20 244 6 Cannon . | . . . Launcher . | . . . Special 17 | . 17 . Kinetic 270 | 20 244 6 Thermal 17 | . 17 . Explosive . | . . . Electromagnetic . | . . . Robot Hit Streak 13 | 6 13 4 Robot Miss Streak 5 | 5 4 2 Penetration Max . | . . . Secondary Targets 2 | . 1 1 Max Gunslinging Chain 1 | . 1 1 Shots Hit Robots 170 | 12 151 7 Core Hits 70 | 5 64 1 Critical Kills . | . . . Critical Parts Destroyed 1 | . 1 . Critical Strikes 1 | . 1 . Destroy 1 | . 1 . Melee Attacks 3 | . . 3 Impact 3 | . . 3 Slashing . | . . . Piercing . | . . . Sneak Attacks . | . . . Combat Hostiles . | . . . Follow-up Attacks . | . . . Damage Inflicted 2161 | 147 1928 86 Guns 2062 | 147 1883 32 Cannons . | . . . Explosions . | . . . Melee 54 | . . 54 Ramming 45 | . 45 . Kinetic 2062 | 147 1883 32 Thermal . | . . . Explosive . | . . . Electromagnetic . | . . . Impact 54 | . . 54 Slashing . | . . . Piercing . | . . . Highest Corruption . | . . . Average Corruption . | . . . Corruption Purged . | . . . Corruption Blocked . | . . . Overload Shots . | . . . Overflow Damage . | . . . Projectiles . | . . . Explosions . | . . . Melee . | . . . Knockbacks 1 | . 1 . Impact 1 | . 1 . Kinetic . | . . . Secondary . | . . . Self-Inflicted Damage . | . . . Shots . | . . . Rammed 10 | . 10 . Targets Rammed 10 | . 10 . Kicked . | . . . Crushed . | . . . Highest Temperature 66 | . 66 4 Average Temperature 22 | . 23 3 Received Heat Transfer 471 | . 471 . Siege Activations . | . . . Martial Activations . | . . . Shielding Activations . | . . . Robots Disrupted . | . . . Combat Hostiles . | . . . Robots Corrupted . | . . . Combat Hostiles . | . . . Parts Fried . | . . . Impact Corruptions . | . . . Robots Melted . | . . . Combat Hostiles . | . . . Parts Melted . | . . . Heat Transferred . | . . . Parts Sabotaged . | . . . Parts Stolen . | . . . Parts Stripped . | . . . Power Chain Reactions . | . . . Alert | -11 -10 -10 ------- Run | Yrd Mat Min Maximum Alert Level 1 | . 1 . Low Security (%) 64 | 100 59 100 Level 1 35 | . 40 . Level 2 . | . . . Level 3 . | . . . Level 4 . | . . . Level 5 . | . . . High Security . | . . . Max Security . | . . . Peak Influence 332 | 10 332 111 Initial 111 | . . 111 Average 127 | . 138 80 Influence Increases 835 | 20 785 30 Destroy 0b10 Robot/C 500 | . 480 20 Destroy 0b10 Robot/NC 100 | 20 80 . Destroy Leader 128 | . 118 10 Successful Hack 26 | . 26 . Select Force Hacks 30 | . 30 . Disable Machine 15 | . 15 . Destroy Structure 6 | . 6 . Lose Combat Pursuer 30 | . 30 . Influence Decreases 794 | 20 498 276 Entered New Map 176 | . . 176 Time Decay 538 | 20 448 70 Lost Part 80 | . 50 30 Squads Dispatched 7 | . 7 . Investigation 5 | . 5 . Extermination . | . . . Reinforcement 2 | . 2 . Assault . | . . . Garrison . | . . . Intercept . | . . . Searches Triggered . | . . . Construction Impeded . | . . . Haulers Reinforced . | . . . Active Scanning Responses . | . . . Cargo Convoy Interrupts . | . . . Stealth | -11 -10 -10 --------- Run | Yrd Mat Min Distress Signals 4 | . 4 . Communications Jammed . | . . . Distress Signals . | . . . Times Spotted 47 | . 41 6 Peak Tracking Total 5 | . 4 5 Tactical Retreats 2 | . 2 . Traps | -11 -10 -10 ------- Run | Yrd Mat Min Traps Triggered 3 | . 3 . Indirectly . | . . . Trap Hack Attempts . | . . . Triggered . | . . . Disarmed . | . . . Reprogrammed . | . . . Reused . | . . . Traps Extracted . | . . . Installed . | . . . Triggered . | . . . Machines | -11 -10 -10 ---------- Run | Yrd Mat Min Machines Disabled 1 | . 1 . Max in Single Turn 1 | . 1 . Machines Repaired . | . . . Machines Dismantled . | . . . Machines Sabotaged . | . . . Overloaded Fab Kills . | . . . Hacking | -11 -10 -10 --------- Run | Yrd Mat Min Machines Accessed 9 | . 9 . Terminals 6 | . 6 . Fabricators . | . . . Repair Stations 1 | . 1 . Recycling Units 2 | . 2 . Scanalyzers . | . . . Garrison Access . | . . . Total Hacks 29 | . 29 . Successful 17 | . 17 . Failed 12 | . 12 . Catastrophic 1 | . 1 . Database Lockouts . | . . . Manual 20 | . 20 . Terminals 21 | . 21 . Fabricators . | . . . Repair Stations 2 | . 2 . Recycling Units 6 | . 6 . Scanalyzers . | . . . Garrison Access . | . . . Terminal Hacks 3 | . 3 . Terminal Index 1 | . 1 . Alert Level 1 | . 1 . Locate Traps 1 | . 1 . Fabricator Hacks . | . . . Repair Station Hacks . | . . . Recycling Unit Hacks 3 | . 3 . Report Inventory 2 | . 2 . Retrieve Components 1 | . 1 . Scanalyzer . | . . . Garrison Access Hacks . | . . . Unauthorized Hacks 11 | . 11 . Terminals 10 | . 10 . Track 1 | . 1 . Botnet 3 | . 3 . Skim 6 | . 6 . Fabricators . | . . . Repair Stations . | . . . Recycling Units 1 | . 1 . Tunnel 1 | . 1 . Scanalyzers . | . . . Garrison Access . | . . . Data Cores Recovered . | . . . Used . | . . . Hacking Detections 7 | . 7 . Full Trace Events 1 | . 1 . Feedback Events . | . . . Feedback Blocked . | . . . Robot Schematics Acquired . | . . . Robots Built . | . . . Authchips . | . . . Time . | . . . Total Robot Build Rating . | . . . Part Schematics Acquired . | . . . Parts Built . | . . . Authchips . | . . . Time . | . . . Total Part Build Rating . | . . . Part Studies Acquired . | . . . Parts Repaired . | . . . Time . | . . . Parts Recycled . | . . . Recycled Matter . | . . . Retrieved Matter . | . . . Retrieved Components 7 | . 7 . Parts Scanalyzed . | . . . Part Schematics Acquired . | . . . Parts Damaged . | . . . Bothacking | -11 -10 -10 ------------ Run | Yrd Mat Min Used RIF Installer . | . . . Robots Hacked . | . . . Non-combat . | . . . Combat . | . . . Robot Hacks Applied . | . . . Relay Couplers Released . | . . . Fabnet Peak Effective % . | . . . Robots Rewired . | . . . Allies Hacked . | . . . Hacks Repelled . | . . . Allies | -11 -10 -10 -------- Run | Yrd Mat Min Total Allies . | . . . Largest Group . | . . . Highest-Rated Group . | . . . Highest-Rated Ally . | . . . Total Orders . | . . . Ally Attacks . | . . . Total Damage . | . . . Kills . | . . . Allies Corrupted . | . . . Allies Melted . | . . . Intel | -11 -10 -10 ------- Run | Yrd Mat Min Active Infowar (turns) 1351 | 11 1340 . Seismic 1351 | 11 1340 . Robot Analysis Total . | . . . Derelict Logs Recovered . | . . . Drone Launches . | . . . Drone Recoveries . | . . . Exploration | -11 -10 -10 ------------- Run | Yrd Mat Min Turns Passed 2242 | 122 1973 147 Spaces Moved 952 | 50 822 80 Core 5 | 5 . . Treads 947 | 45 822 80 Legs . | . . . Wheels . | . . . Hover . | . . . Flight . | . . . Fastest Speed 50 | 50 160 160 Average Speed 159 | 152 160 160 Slowest Speed 160 | 160 160 160 Overloaded Moves . | . . . Propulsion Burnouts . | . . . Robots Hopped . | . . . Potential Cave-ins . | . . . Cave-ins Triggered . | . . . Exploration Rate (%) 43 | 6 96 29 Regions Visited 2 Branch Regions 1 Pre-discovered Areas 2 | . 2 . Known Exits Taken . | . . . Unknown Exits Taken 2 | 1 1 . Scrap Searched . | . . . Spaces Dug 3 | . 3 . Terrain Destroyed 5 | . 5 . Melee . | . . . Projectile 5 | . 5 . AOE . | . . . Terrain Rammed . | . . . Walls Destroyed . | . . . Machines Disabled . | . . . Actions | -11 -10 -10 --------- Run | Yrd Mat Min Total 1345 | 72 1184 89 Wait 195 | . 193 2 Move 950 | 49 821 80 Hop . | . . . Pick Up 12 | 5 7 . Fast Attach 8 | 7 1 . Attach 4 | . 4 . Detach 1 | . 1 . Swap 6 | 1 4 1 Drop 4 | . 4 . Fire 152 | 10 139 3 Melee 3 | . . 3 Ram . | . . . Kick . | . . . Crush 10 | . 10 . Escape Stasis . | . . . Rewire . | . . . Trap . | . . . Miscellaneous . | . . . Route ------- -11/Scrapyard -10/Materials (discovered 5 exits: *Mat x3 / [*Min] / Sub) -10/Mines (discovered 1 exit: *Mat) History --------- Turn | Location | Event 10 | -11/Scrapyard | Discovered new exit (range 15) 123 | -11/Scrapyard | Entered Materials 300 | -10/Materials | Build established: Mutant 443 | -10/Materials | Discovered new exit (range 12) 921 | -10/Materials | Discovered new exit (range 8) 1108 | -10/Materials | Discovered new exit (range 16) 1433 | -10/Materials | Discovered new exit (range 16) 1482 | -10/Materials | Core integrity fell below 50% 1563 | -10/Materials | Learned 4 Recycling zone layouts 1611 | -10/Materials | Learned 4 Subcaves zone layouts 1677 | -10/Materials | Learned Storage security intel 1692 | -10/Materials | Identified exit to Materials 1717 | -10/Materials | Identified exit to Subcaves 1804 | -10/Materials | Lost 3 parts (1p1n1w) 2096 | -10/Materials | Entered Mines 2204 | -10/Mines | Build established: Scavenger-Mutant 2214 | -10/Mines | Assembled infested the area 2229 | -10/Mines | Discovered exit to Materials (range 14) 2237 | -10/Mines | Core integrity fell below 20% 2243 | -10/Mines | Destroyed by D-53 Grenadier with Mini Grenade Launcher Last Messages --------------- 02082_ Slammed into K-01 Serf. LOCATION=UNKNOWN GOAL=ESCAPE Something is scanning the area. 02214_ ALERT: Infestation in the mines, dispatching Demolisher response squad. 02226_ S-10 Pest destroyed. 02226_ Switching to secondary target: S-10 Pest. 02229_ EXIT=FOUND: MATERIALS 02229_ as-70267 destroyed. 02229_ as-48894 destroyed. 02229_ as-68141 destroyed. 02231_ Lgt. Treads destroyed. 02236_ The unstable cave ceiling collapses. 02236_ Lgt. Treads destroyed. 02236_ S-10 Pest destroyed. 02237_ as-29171 destroyed. 02237_ as-49685 destroyed. 02241_ The unstable cave ceiling collapses. 02241_ Lgt. Nuclear Core destroyed. Map ----- +----------------------------------------------------+ | ??????????? ## ??????????????????????????? | | ??????????# ???????????????????????????? | | ?????????# #????????????????????????????? | | ???####?# ##???????????????????????????? | | ??## ## #???????????????????????????? | | ?## ! #???????????????????????????? | | ?# ! #????????????????????????????? | | ?# = #??????????????????????????????????? | | ??# !##??????????????????????????????????? | | ??## ##????####???????????????????????????? | | ???# ###????# #???????????????????????????? | | ??## ##????# #???????##???????????????????? | | ??# ##?## #???? ??# #??????????????????? | | ?## ### #????